fUSD/lending_fUSD_20241122
["ID","MTS","AMOUNT","RATE_DAILY","PERIOD"]
[342980117,1732245038998,-500.0,0.00060674,120]
[342980118,1732245039008,-500.0,0.00060674,120]
[342980119,1732245039017,-500.0,0.00060674,120]
[342980120,1732245039026,-500.0,0.00060689,120]
[342980121,1732245039036,-500.0,0.00060689,120]
[342980122,1732245039046,-500.0,0.00060689,120]
[342980123,1732245039055,-500.0,0.00060689,120]
[342980124,1732245039065,-500.0,0.00060689,120]
[342980125,1732245039075,-500.0,0.00060689,120]
[342980126,1732245039084,-500.0,0.00060689,120]
[342980127,1732245039093,-500.0,0.00060689,120]
[342980128,1732245039103,-500.0,0.00060689,120]
[342980130,1732245039114,-500.0,0.00060689,120]
[342980132,1732245039123,-516.66920305,0.00060689,120]
[342980133,1732245039131,-1947.0,0.0006076,60]
[342980134,1732245039141,-150.0,0.00060762,30]
[342980135,1732245039150,-150.0,0.00060828,30]
[342980136,1732245039159,-150.0,0.00060899,30]
[342980137,1732245039169,-150.0,0.00060965,30]
[342980138,1732245039178,-150.0,0.00060981,30]
[342980139,1732245039188,-500.0,0.00060996,120]
[342980140,1732245039197,-500.0,0.00060996,120]
[342980141,1732245039207,-199.02,0.0006137,30]
[342980142,1732245039216,-165.85,0.0006137,30]
[342980143,1732245039226,-829.27,0.0006137,30]
[342980144,1732245039237,-1947.0,0.0006138,60]
[342980145,1732245039246,-876.29192493,0.000619,15]
[342980146,1732245039256,-1233.76767,0.00062,120]
[342980147,1732245039266,-1947.0,0.00062,60]
[342980148,1732245039275,-633.42157258,0.00062,60]
[342980149,1732245039284,-800.0,0.00062,120]
[342980150,1732245039293,-2000.0,0.000621,120]
[342980151,1732245039302,-1000.0,0.000623,120]
[342980152,1732245039312,-1000.0,0.000623,120]
[342980153,1732245039321,-1199.41,0.00062351,2]
[342980154,1732245039331,-1000.0,0.000624,120]
[342980155,1732245039340,-150.0,0.000624,120]
[342980156,1732245039350,-1093.86124,0.00062439,111]
[342980157,1732245039360,-500.0,0.0006245,120]
[342980158,1732245039369,-500.0,0.0006245,120]
[342980159,1732245039379,-6030.20518065,0.00062451,2]
[342980160,1732245039391,-1982.43966316,0.00062451,2]
[342980161,1732245039402,-5738.10427105,0.00062451,2]
[342980162,1732245040458,-500.0,0.00057643,120]
[342980163,1732245040467,-115.83362235,0.00062451,2]
[342980164,1732245040480,-452.81286236,0.00062451,2]
[342980165,1732245040493,-1686.86023657,0.00062451,2]
[342980166,1732245040503,-299.84219493,0.00062457,3]
[342980167,1732245040515,-616.525332,0.00062457,3]
[342980168,1732245040526,-71.69734277,0.00062457,3]
[342980169,1732245040536,-275.89375866,0.00062457,3]
[342980170,1732245040547,-563.30229987,0.00062457,3]
[342980171,1732245040559,-1447.42913547,0.00062457,3]
[342980172,1732245040569,-2000.0,0.000625,120]
[342980173,1732245040578,-10682.78081964,0.000626,15]
[342980174,1732245040588,-861.2766,0.000626,2]
[342980175,1732245040598,-250.0,0.000626,30]
[342980176,1732245040607,-321.8258679,0.000626,2]
[342980177,1732245040617,-242.12636366,0.000626,34]
[342980178,1732245040627,-1947.0,0.0006262,60]
[342980179,1732245040637,-178.65,0.00062648,2]
[342980180,1732245040647,-589.4,0.00062699,120]
[342980181,1732245040657,-274.96489053,0.00062699,120]
[342980182,1732245040667,-500.0,0.00062699,120]
[342980183,1732245040676,-500.0,0.00062699,120]
[342980184,1732245040686,-500.0,0.00062699,120]
[342980185,1732245040695,-664.9,0.00062699,120]
[342980186,1732245040705,-759.89,0.00062699,2]
[342980187,1732245040714,-831.9,0.00062699,120]
[342980188,1732245040723,-150755.45789825,0.000627,2]
[342980189,1732245040735,-14424.48245563,0.000627,2]
[342980195,1732245043832,-500.0,0.0005863,120]
[342980196,1732245043841,-12500.96336625,0.000627,2]
[342980197,1732245043853,-2178.63170356,0.000627,2]
[342980202,1732245044115,-500.0,0.00058904,120]
[342980203,1732245044125,-20.2443575,0.000627,2]
[342980204,1732245044137,-9272.95588208,0.000627,2]
[342980205,1732245044195,-18.66182649,0.000627,2]
[342980206,1732245044206,-2641.13144138,0.000627,2]
[342980207,1732245044217,-14971.75554386,0.000627,2]
[342980208,1732245044228,-2890.84530832,0.000627,2]
[342980212,1732245046182,-22200.000002,0.000627,2]
[342980218,1732245046444,-21747.78025,0.000627,2]
[342980219,1732245046456,-64465.67256468,0.000627,2]
[342980220,1732245046465,-696.9677,0.000627,2]
[342980221,1732245046475,-150.98,0.0006279,120]
[342980222,1732245046484,-589.4,0.00062799,120]
[342980223,1732245046493,-500.0,0.00062799,120]
[342980224,1732245046504,-500.0,0.00062799,120]
[342980225,1732245046513,-500.0,0.00062799,120]
[342980226,1732245046523,-664.9,0.00062799,120]
[342980227,1732245046532,-759.89,0.00062799,2]
[342980228,1732245046542,-831.9,0.00062799,120]
[342980229,1732245046551,-99939.08487855,0.000628,120]
[342980230,1732245046561,-597.23,0.000628,120]
[342980231,1732245046571,-500.0,0.000628,120]
[342980232,1732245046580,-500.0,0.000628,120]
[342980233,1732245046590,-500.0,0.000628,120]
[342980234,1732245046599,-375.07,0.000628,120]
[342980235,1732245046608,-500.0,0.000628,120]
[342980236,1732245046618,-597.23,0.000628,120]
[342980237,1732245046627,-500.0,0.000628,120]
[342980238,1732245046637,-500.0,0.000628,120]
[342980239,1732245046646,-44830.8055,0.00062899,2]
[342980240,1732245046656,-2500.0,0.000629,120]
[342980241,1732245046666,-200.0,0.000629,22]
[342980242,1732245046677,-500.0,0.00062958,120]
[342980243,1732245046687,-500.0,0.00062958,120]
[342980244,1732245046696,-1000.0,0.00062999,120]
[342980245,1732245046706,-151.0,0.00062999,120]
[342980246,1732245046717,-589.4,0.00062999,120]
[342980247,1732245046727,-500.0,0.00062999,120]
[342980248,1732245046738,-500.0,0.00062999,120]
[342980249,1732245046748,-500.0,0.00062999,120]
[342980250,1732245046758,-664.9,0.00062999,120]
[342980251,1732245046768,-759.89,0.00062999,2]
[342980252,1732245046778,-831.9,0.00062999,120]
[342980253,1732245046789,-50000.0,0.00063,53]
[342980254,1732245046799,-50000.0,0.00063,63]
[342980255,1732245046809,-27784.87091564,0.00063,10]
[342980256,1732245046818,-260.0,0.00063,60]
[342980257,1732245046828,-500.0,0.00063,120]
[342980258,1732245046838,-500.0,0.00063,120]
[342980259,1732245046847,-500.0,0.00063,120]
[342980260,1732245046857,-500.0,0.00063,120]
[342980261,1732245046867,-500.0,0.00063,120]
[342980262,1732245046877,-500.0,0.00063,120]
[342980263,1732245046887,-500.0,0.00063,120]
[342980264,1732245046897,-500.0,0.00063,120]
[342980265,1732245046906,-500.0,0.00063,120]
[342980266,1732245046916,-500.0,0.00063,120]
[342980267,1732245046926,-500.0,0.00063,120]
[342980268,1732245046941,-500.0,0.00063,120]
[342980269,1732245046951,-500.0,0.00063,120]
[342980270,1732245046961,-500.0,0.00063,120]
[342980271,1732245046971,-500.0,0.00063,120]
[342980272,1732245046982,-500.0,0.00063,120]
[342980273,1732245046992,-500.0,0.00063,120]
[342980274,1732245047003,-500.0,0.00063,120]
[342980275,1732245047014,-713.0,0.00063,120]
[342980276,1732245047024,-500.0,0.00063,120]
[342980277,1732245047034,-500.0,0.00063,120]
[342980278,1732245047044,-500.0,0.00063,120]
[342980279,1732245047054,-500.0,0.00063,120]
[342980280,1732245047064,-500.0,0.00063,120]
[342980281,1732245047074,-500.0,0.00063,120]
[342980282,1732245047084,-500.0,0.00063,120]
[342980283,1732245047094,-500.0,0.00063,120]
[342980284,1732245047104,-500.0,0.00063,120]
[342980285,1732245047114,-500.0,0.00063,120]
[342980286,1732245047123,-500.0,0.00063,120]
[342980287,1732245047133,-500.0,0.00063,120]
[342980288,1732245047142,-500.0,0.00063,120]
[342980289,1732245047152,-500.0,0.00063,120]
[342980290,1732245047162,-500.0,0.00063,120]
[342980291,1732245047171,-500.0,0.00063,120]
[342980292,1732245047181,-500.0,0.00063,120]
[342980293,1732245047191,-500.0,0.00063,120]
[342980294,1732245047201,-500.0,0.00063,120]
[342980295,1732245047210,-500.0,0.00063,120]
[342980296,1732245047219,-500.0,0.00063,120]
[342980297,1732245047228,-500.0,0.00063,120]
[342980298,1732245047238,-500.0,0.00063,120]
[342980299,1732245047247,-500.0,0.00063,120]
[342980300,1732245047259,-500.0,0.00063,120]
[342980301,1732245047269,-500.0,0.00063,120]
[342980302,1732245047279,-500.0,0.00063,120]
[342980303,1732245047288,-500.0,0.00063,120]
[342980304,1732245047298,-500.0,0.00063,120]
[342980305,1732245047307,-500.0,0.00063,120]
[342980306,1732245047317,-500.0,0.00063,120]
[342980307,1732245047327,-500.0,0.00063,120]
[342980308,1732245047337,-500.0,0.00063,120]
[342980309,1732245047346,-500.0,0.00063,120]
[342980310,1732245047356,-500.0,0.00063,120]
[342980311,1732245047366,-500.0,0.00063,120]
[342980312,1732245047375,-500.0,0.00063,120]
[342980313,1732245047384,-500.0,0.00063,120]
[342980314,1732245047393,-500.0,0.00063,120]
[342980315,1732245047403,-500.0,0.00063,120]
[342980316,1732245047413,-500.0,0.00063,120]
[342980317,1732245047422,-500.0,0.00063,120]
[342980318,1732245047432,-500.0,0.00063,120]
[342980319,1732245047441,-500.0,0.00063,120]
[342980320,1732245047451,-500.0,0.00063,120]
[342980321,1732245047461,-500.0,0.00063,120]
[342980322,1732245047470,-500.0,0.00063,120]
[342980323,1732245047480,-500.0,0.00063,120]
[342980324,1732245047490,-500.0,0.00063,120]
[342980325,1732245047501,-500.0,0.00063,120]
[342980326,1732245047511,-500.0,0.00063,120]
[342980327,1732245047520,-500.0,0.00063,120]
[342980328,1732245047530,-500.0,0.00063,120]
[342980329,1732245047539,-500.0,0.00063,120]
[342980330,1732245047549,-500.0,0.00063,120]
[342980331,1732245047565,-500.0,0.00063,120]
[342980332,1732245047577,-500.0,0.00063,120]
[342980333,1732245047589,-500.0,0.00063,120]
[342980334,1732245047598,-500.0,0.00063,120]
[342980335,1732245047607,-500.0,0.00063,120]
[342980336,1732245047618,-500.0,0.00063,120]
[342980337,1732245047628,-500.0,0.00063,120]
[342980338,1732245047752,-500.0,0.00063,120]
[342980339,1732245047763,-500.0,0.00063,120]
[342980340,1732245047772,-500.0,0.00063,120]
[342980341,1732245047781,-500.0,0.00063,120]
[342980342,1732245047792,-568.0,0.00063,120]
[342980343,1732245047802,-500.0,0.00063,50]
[342980344,1732245047812,-900.0,0.00063,64]
[342980345,1732245047821,-250.0,0.00063,2]
[342980346,1732245047830,-250.0,0.00063,5]
[342980347,1732245047841,-250.0,0.00063,10]
[342980348,1732245047851,-250.0,0.00063,20]
[342980349,1732245047861,-250.0,0.00063,40]
[342980350,1732245047870,-747.0,0.00063,120]
[342980351,1732245047881,-150.98,0.00063003,120]
[342980352,1732245047891,-500.0,0.00063013,120]
[342980353,1732245047902,-500.0,0.00063013,120]
[342980354,1732245047912,-340.47,0.00063013,120]
[342980355,1732245047921,-356.34,0.00063013,120]
[342980356,1732245047931,-500.0,0.00063013,120]
[342980357,1732245047944,-500.0,0.00063013,120]
[342980358,1732245047953,-500.0,0.00063013,120]
[342980359,1732245047963,-500.27713112,0.00063013,120]
[342980360,1732245047973,-500.0,0.00063013,120]
[342980361,1732245047983,-500.0,0.00063013,120]
[342980362,1732245047993,-500.0,0.00063013,120]
[342980363,1732245048005,-500.0,0.00063013,120]
[342980364,1732245048018,-180.1456,0.00063013,120]
[342980365,1732245048029,-500.0,0.00063013,120]
[342980366,1732245048039,-500.0,0.00063013,120]
[342980367,1732245048050,-500.0,0.00063013,120]
[342980368,1732245048060,-550.35,0.00063013,120]
[342980369,1732245048069,-550.35,0.00063013,120]
[342980370,1732245048079,-550.35,0.00063013,120]
[342980371,1732245048088,-999.3,0.00063013,120]
[342980372,1732245048098,-999.3,0.00063013,120]
[342980373,1732245048110,-999.3,0.00063013,120]
[342980374,1732245048119,-318.94871016,0.00063013,120]
[342980375,1732245048130,-500.0,0.00063013,120]
[342980376,1732245048139,-500.0,0.00063013,120]
[342980377,1732245048149,-500.0,0.00063013,120]
[342980378,1732245048159,-156.132,0.0006317,120]
[342980379,1732245048169,-1947.0,0.0006324,60]
[342980380,1732245048180,-5543.0,0.00063334,120]
[342980381,1732245048190,-194.46,0.00063355,2]
[342980382,1732245048200,-219.77585632,0.00063359,120]
[342980383,1732245048210,-167.29,0.00063624,2]
[342980384,1732245048220,-597.23,0.000638,120]
[342980385,1732245048230,-597.23,0.000638,120]
[342980386,1732245048239,-500.0,0.000638,120]
[342980387,1732245048248,-500.0,0.000638,120]
[342980388,1732245048261,-1947.0,0.0006386,60]
[342980389,1732245048271,-1000.0,0.00063999,120]
[342980390,1732245048281,-151.0,0.00063999,120]
[342980391,1732245048291,-500.0,0.00063999,120]
[342980392,1732245048301,-500.0,0.00063999,120]
[342980393,1732245048311,-50000.0,0.00064,64]
[342980394,1732245048321,-10000.0,0.00064,120]
[342980395,1732245048331,-900.0,0.00064,65]
[342980396,1732245048340,-200.0,0.00064,120]
[342980397,1732245048350,-1000.0,0.00064006,120]
[342980398,1732245048359,-170.41,0.00064027,2]
[342980399,1732245048369,-150.0,0.000643,120]
[342980400,1732245048380,-800.0,0.000644,120]
[342980401,1732245048390,-500.0,0.00064439,120]
[342980402,1732245048400,-999.3,0.00064439,120]
[342980403,1732245048410,-15000.0,0.0006444,30]
[342980404,1732245048420,-264.29,0.00064447,30]
[342980405,1732245048431,-157.112212,0.00064498,120]
[342980406,1732245048440,-364.42,0.0006451,60]
[342980407,1732245048451,-10000.0,0.0006454,60]
[342980408,1732245048461,-250.0,0.000646,30]
[342980409,1732245048471,-284.54003741,0.00064635,120]
[342980410,1732245048480,-488.06716691,0.00064644,120]
[342980411,1732245048489,-553.76876135,0.00064656,120]
[342980412,1732245048499,-3122.69702445,0.00064657,120]
[342980413,1732245048511,-727.2455226,0.00064667,120]
[342980414,1732245048521,-200.0,0.00064672,120]
[342980415,1732245048531,-2034.22493733,0.00064675,120]
[342980416,1732245048541,-1087.53752276,0.00064687,120]
[342980417,1732245048551,-543.76876135,0.00064689,120]
[342980418,1732245048561,-1752.03598395,0.00064695,120]
[342980419,1732245048572,-3122.69702445,0.00064701,120]
[342980420,1732245048582,-274.54003741,0.00064702,120]
[342980421,1732245048591,-294.14793911,0.00064703,120]
[342980422,1732245048601,-200.0,0.00064706,120]
[342980423,1732245048612,-488.06716691,0.0006471,120]
[342980424,1732245048622,-6245.39404895,0.00064727,120]
[342980425,1732245048632,-3122.69702445,0.00064736,120]
[342980426,1732245048642,-200.0,0.00064778,120]
[342980427,1732245048652,-200.0,0.00064779,120]
[342980428,1732245048662,-2641.85056798,0.00064792,120]
[342980429,1732245048672,-597.23,0.000648,120]
[342980430,1732245048684,-500.0,0.000648,120]
[342980431,1732245048694,-500.0,0.000648,120]
[342980432,1732245048703,-500.0,0.000648,23]
[342980433,1732245048713,-1352.70018729,0.00064807,120]
[342980434,1732245048723,-462.8807987,0.00064826,120]
[342980435,1732245048733,-976.13433388,0.00064836,120]
[342980436,1732245048743,-389.577654,0.00064838,120]
[342980437,1732245048755,-200.0,0.0006484,120]
[342980438,1732245048765,-1000.0,0.00064846,120]
[342980439,1732245048777,-425.27188491,0.00064861,120]
[342980440,1732245048788,-488.06716689,0.00064863,120]
[342980441,1732245048798,-200.0,0.00064871,120]
[342980442,1732245048807,-549.08007487,0.00064872,120]
[342980443,1732245048817,-205.27292443,0.00064884,120]
[342980444,1732245048827,-1004.05274469,0.00064886,120]
[342980445,1732245048896,-268.20865531,0.00064886,120]
[342980446,1732245048905,-1132.24912487,0.00064892,120]
[342980447,1732245048917,-10077.43250152,0.00064892,120]
[342980448,1732245048926,-2638.0,0.00064898,88]
[342980449,1732245048939,-150.0,0.00064898,120]
[342980450,1732245048949,-1477.53165529,0.00064898,120]
[342980451,1732245048958,-21159.32945549,0.000649,120]
[342980452,1732245048968,-216.41409176,0.000649,45]
[342980453,1732245048979,-800.0,0.000649,23]
[342980454,1732245048989,-178.65,0.00064912,2]
[342980455,1732245049003,-560.87513769,0.00064923,120]
[342980456,1732245049014,-200.0,0.00064932,120]
[342980457,1732245049024,-200.0,0.00064935,120]
[342980458,1732245049034,-988.0648697,0.00064942,4]
[342980459,1732245049044,-2286.625194,0.00064942,4]
[342980460,1732245049054,-500.0,0.00064945,120]
[342980461,1732245049064,-150.98,0.00064976,120]
[342980462,1732245049073,-500.0,0.00064985,120]
[342980463,1732245049084,-664.9,0.00064985,120]
[342980464,1732245049095,-759.89,0.00064985,2]
[342980465,1732245049105,-831.9,0.00064985,120]
[342980466,1732245049115,-206.09809041,0.00064985,120]
[342980467,1732245049125,-500.0,0.00064985,120]
[342980468,1732245049135,-589.4,0.00064986,120]
[342980469,1732245049145,-500.0,0.00064986,120]
[342980470,1732245049155,-500.0,0.00064986,120]
[342980471,1732245049165,-550.35,0.00064986,120]
[342980472,1732245049174,-500.0,0.00064986,120]
[342980473,1732245049184,-111072.0,0.00064986,120]
[342980474,1732245049194,-876.29192491,0.0006499,15]
[342980475,1732245049204,-150.98,0.0006499,120]
[342980476,1732245049214,-150.98,0.0006499,120]
[342980477,1732245049223,-1000.0,0.00064999,120]
[342980478,1732245049234,-500.0,0.00064999,120]
[342980479,1732245049244,-500.0,0.00064999,120]
[342980480,1732245049257,-500.0,0.00064999,120]
[342980481,1732245049270,-589.4,0.00064999,120]
[342980482,1732245049279,-589.4,0.00064999,120]
[342980483,1732245049289,-589.4,0.00064999,120]
[342980484,1732245049298,-500.0,0.00064999,120]
[342980485,1732245049312,-309.09,0.00064999,120]
[342980486,1732245049323,-500.0,0.00064999,120]
[342980487,1732245049332,-500.0,0.00064999,120]
[342980488,1732245049342,-500.0,0.00064999,120]
[342980489,1732245049352,-500.0,0.00064999,120]
[342980490,1732245049362,-500.0,0.00064999,120]
[342980491,1732245049372,-500.0,0.00064999,120]
[342980492,1732245049383,-664.9,0.00064999,120]
[342980493,1732245049393,-664.9,0.00064999,120]
[342980494,1732245049402,-664.9,0.00064999,120]
[342980495,1732245049412,-759.89,0.00064999,2]
[342980496,1732245049422,-759.89,0.00064999,2]
[342980497,1732245049431,-759.89,0.00064999,2]
[342980498,1732245049441,-831.9,0.00064999,120]
[342980499,1732245049451,-831.9,0.00064999,120]
[342980500,1732245049460,-831.9,0.00064999,120]
[342980501,1732245049471,-567.53400044,0.00064999,120]
[342980502,1732245049482,-500.0,0.00064999,120]
[342980503,1732245049492,-500.0,0.00064999,120]
[342980504,1732245049505,-500.0,0.00064999,120]
[342980505,1732245049516,-550.35,0.00064999,120]
[342980506,1732245049526,-550.35,0.00064999,120]
[342980507,1732245049536,-550.35,0.00064999,120]
[342980508,1732245049546,-999.3,0.00064999,120]
[342980509,1732245049557,-999.3,0.00064999,120]
[342980510,1732245049567,-999.3,0.00064999,120]
[342980511,1732245049577,-500.0,0.00064999,120]
[342980512,1732245049588,-500.0,0.00064999,120]
[342980513,1732245049599,-327.4,0.00064999,120]
[342980514,1732245049609,-50000.0,0.00065,65]
[342980515,1732245049619,-400.1084016,0.00065,120]
[342980516,1732245049629,-295.0,0.00065,120]
[342980517,1732245049639,-19758.31234119,0.00065,120]
[342980518,1732245049649,-55972.61218172,0.00065,120]
[342980519,1732245049659,-2000.0,0.00065,120]
[342980520,1732245049669,-3127.0,0.00065,30]
[342980521,1732245049679,-356.0,0.00065,120]
[342980522,1732245049689,-500.0,0.00065,45]
[342980523,1732245049699,-1818.01166674,0.00065,120]
[342980524,1732245049709,-79469.33975528,0.00065,2]
[342980525,1732245049720,-2400.0,0.00065,120]
[342980526,1732245049730,-2400.0,0.00065,120]
[342980527,1732245049740,-2400.0,0.00065,120]
[342980528,1732245049752,-2400.0,0.00065,120]
[342980529,1732245049763,-2400.0,0.00065,120]
[342980530,1732245049773,-2400.0,0.00065,120]
[342980531,1732245049783,-2400.0,0.00065,120]
[342980532,1732245049794,-2400.0,0.00065,120]
[342980533,1732245049804,-2400.0,0.00065,120]
[342980534,1732245049815,-2400.0,0.00065,120]
[342980535,1732245049825,-985.18612919,0.00065,120]
[342980536,1732245049837,-304.0,0.00065,120]
[342980537,1732245049847,-9185.16883996,0.00065,120]
[342980538,1732245049858,-1148.34436734,0.00065,120]
[342980539,1732245049869,-255454.40684956,0.00065,60]
[342980540,1732245049883,-596.56132197,0.00065,60]
[342980541,1732245049896,-78321.57725409,0.00065,60]
[342980547,1732245908603,999563.88872706,0.00011,2]
[342980559,1732246173145,-524.30588558,0.00013,2]
[342980560,1732246173178,-155.13,0.00015342,2]
[342980561,1732246173201,-293.512153,0.00022,2]
[342980593,1732246232566,-2202.23418569,0.00022,2]
[342980595,1732246232576,-203.0,0.00024,5]
[342980597,1732246232587,-620.13227794,0.0002421,2]
[342980599,1732246232598,-1114.35724703,0.0002451,2]
[342980600,1732246232607,-1973.58358268,0.00025,7]
[342980601,1732246232619,-3640.00066694,0.00025,7]
[342980602,1732246232629,-4087.588371,0.00026865,2]
[342980603,1732246232638,-410.87132282,0.00027,2]
[342980604,1732246232648,-1038.44401774,0.00027,120]
[342980605,1732246232657,-686.84,0.00033837,120]
[342980606,1732246232667,-2785.706862,0.00036744,7]
[342980607,1732246232676,-1416.217589,0.00036744,7]
[342980608,1732246232686,-295.56834924,0.00037744,2]
[342980609,1732246232696,-686.84,0.00038066,120]
[342980610,1732246232705,-1836.47871801,0.0004,20]
[342980611,1732246232715,-2538.09949339,0.00041642,2]
[342980612,1732246232724,-686.84,0.00042296,120]
[342980613,1732246232733,-686.84,0.00046525,120]
[342980614,1732246232742,-194.46,0.00048359,2]
[342980615,1732246232752,-306.81363654,0.000485,30]
[342980616,1732246232761,-150.0,0.00049999,9]
[342980617,1732246232770,-505.8219609,0.0005,120]
[342980618,1732246232782,-10000.0,0.0005,30]
[342980619,1732246232791,-10000.0,0.0005,30]
[342980620,1732246232801,-9642.66,0.0005,30]
[342980621,1732246232810,-686.84,0.00050755,120]
[342980622,1732246232820,-250.0,0.0005491,120]
[342980623,1732246232829,-2873.1340775,0.00056781,7]
[342980624,1732246232838,-1926.5212,0.000575,120]
[342980625,1732246232848,-3040.43352853,0.0005856,120]
[342980626,1732246232857,-632.0,0.00058809,120]
[342980627,1732246232868,-302.73,0.00058908,120]
[342980628,1732246232877,-14194.31652212,0.000598,120]
[342980629,1732246232887,-319.93008391,0.000599,2]
[342980630,1732246232896,-224.4,0.0005999,10]
[342980631,1732246232905,-213.68729702,0.00059999,31]
[342980632,1732246236656,-286.31270298,0.00059999,31]
[342980633,1732246236666,-391.25825326,0.00059999,31]
[342980634,1732246236675,-500.0,0.00059999,31]
[342980635,1732246236685,-169.44236144,0.0006,120]
[342980636,1732246236695,-1528.55,0.0006,120]
[342980637,1732246236705,-382992.75388388,0.0006,120]
[342980638,1732246236761,-97007.24611612,0.0006,120]
[342980639,1732246236771,-1413.69917068,0.0006,120]
[342980640,1732246236783,-323.73900931,0.0006,120]
[342980641,1732246236793,-1404.51892899,0.0006,60]
[342980642,1732246236803,-150.44,0.00061504,2]
[342980643,1732246236813,-223.65,0.00061773,30]
[342980644,1732246236823,-632.0,0.00061809,120]
[342980645,1732246236833,-4335.0,0.00062198,117]
[342980646,1732246236843,-23900.0,0.00062326,2]
[342980647,1732246236853,-150.98,0.00062347,120]
[342980648,1732246236862,-500.0,0.00062349,2]
[342980649,1732246236871,-976.4793,0.00062351,2]
[342980650,1732246236881,-8046.3912,0.00062357,2]
[342980651,1732246236891,-233.992,0.00062357,120]
[342980652,1732246236900,-250.0,0.00062426,120]
[342980653,1732246236909,-250.0,0.00062564,120]
[342980654,1732246236919,-1000.0,0.00062689,120]
[342980656,1732246236929,-21747.7803,0.000627,2]
[342980658,1732246236938,-155.44,0.00062864,120]
[342980660,1732246236948,-170.41,0.00062929,2]
[342980662,1732246236958,-2279.32848437,0.00063,5]
[342980664,1732246236967,-624.35281786,0.00063013,120]
[342980666,1732246236976,-500.0,0.00063013,120]
[342980668,1732246236986,-500.0,0.00063013,120]
[342980670,1732246236995,-500.0,0.00063013,120]
[342980672,1732246237006,-500.0,0.00063013,120]
[342980674,1732246237015,-500.0,0.00063013,120]
[342980676,1732246237027,-500.0,0.00063013,120]
[342980677,1732246237036,-500.0,0.00063013,120]
[342980678,1732246237046,-500.0,0.00063013,120]
[342980679,1732246237055,-500.0,0.00063013,120]
[342980680,1732246237065,-707.84,0.00063013,120]
[342980681,1732246237074,-707.84,0.00063013,120]
[342980682,1732246237083,-500.0,0.00063013,120]
[342980683,1732246237093,-500.0,0.00063013,120]
[342980684,1732246237102,-299.9527354,0.00063699,120]
[342980686,1732246237112,-150.44,0.00063893,2]
[342980688,1732246237121,-319.9300839,0.00064344,2]
[342980690,1732246237131,-911.55103,0.0006435,118]
[342980692,1732246237140,-500.0,0.00064439,120]
[342980694,1732246237149,-167.29,0.00064455,2]
[342980695,1732246237159,-2057.38066432,0.000645,120]
[342980696,1732246237171,-632.0,0.00064809,120]
[342980697,1732246237180,-172.46834471,0.00064898,120]
[342980698,1732246237189,-510.4782,0.000649,2]
[342980699,1732246237199,-1278.5217,0.000649,2]
[342980700,1732246237208,-701.03354,0.000649,15]
[342980701,1732246237218,-500.0,0.00064985,120]